bitfinex/quotes_SOLUSD_20241111
["timestamp","ask_amount","ask_price","bid_price","bid_amount"]
[1731366699913,21.70349397,220.33,220.21,6.54454856]
[1731366699914,21.70349397,220.27,220.21,6.54454856]
[1731366700132,21.70349397,220.24,220.16,21.70349397]
[1731366700516,21.70349397,220.26,220.18,21.70349397]
[1731366700730,21.70349397,220.28,220.2,21.70349397]
[1731366700930,21.70349397,220.3,220.22,21.70349397]
[1731366701260,0.2,220.43,220.24,21.70349397]
[1731366701534,21.70349397,220.34,220.27,23.776884]
[1731366702311,21.70349397,220.32,220.25,23.776884]
[1731366702707,22.0522,220.42,220.27,23.776884]
[1731366702923,21.70349397,220.33,220.27,23.776884]
[1731366703522,21.70349397,220.31,220.25,23.776884]
[1731366703725,21.70349397,220.31,220.24,23.776884]
[1731366704732,21.70349397,220.34,220.28,23.776884]
[1731366705329,21.70349397,220.32,220.26,23.776884]
[1731366705515,21.70349397,220.3,220.26,23.776884]
[1731366705715,21.70349397,220.32,220.24,23.776884]
[1731366706035,21.70349397,220.32,220.26,23.776884]
[1731366706440,0.1,220.4,220.25,21.70349397]
[1731366706441,21.70349397,220.31,220.25,23.776884]
[1731366706733,21.70349397,220.29,220.24,23.776884]
[1731366707031,21.70349397,220.27,220.2,21.70349397]
[1731366707421,21.70349397,220.23,220.11,6.54454856]
[1731366707621,21.70349397,220.14,220.05,28.26609397]
[1731366708029,21.70349397,220.14,220.07,21.70349397]
[1731366708449,21.70349397,220.18,220.09,21.70349397]
[1731366708812,21.70349397,220.16,220.07,21.70349397]
[1731366709032,21.70349397,220.14,220.05,28.26609397]
[1731366709213,21.70349397,220.14,220.06,23.776884]
[1731366709615,21.70349397,220.16,220.07,21.70349397]
[1731366709813,21.70349397,220.14,220.08,23.776884]
[1731366710626,21.70349397,220.16,220.08,23.776884]
[1731366710935,21.70349397,220.22,220.14,23.776884]
[1731366711339,21.70349397,220.2,220.14,23.776884]
[1731366711537,21.70349397,220.16,220.1,23.776884]
[1731366711834,21.70349397,220.11,220.05,6.5626]
[1731366712140,21.70349397,220.13,220.05,6.5626]
[1731366712924,21.70349397,220.09,220.01,36.72719397]
[1731366713336,21.70349397,220.06,220.01,15.0237]
[1731366713716,21.70349397,220.06,219.99,6.3264]
[1731366713924,21.70349397,220.04,219.99,6.3264]
[1731366714119,21.70349397,220.02,219.94,36.83199397]
[1731366714330,21.70349397,220.02,219.91,6.3264]
[1731366714331,21.70349397,219.98,219.91,6.3264]
[1731366714527,21.70349397,220.11,219.91,6.3264]
[1731366714528,0.1,220.11,219.91,6.3264]
[1731366714735,16.6548,220.12,219.92,21.70349397]
[1731366714736,21.70349397,220.01,219.92,21.70349397]
[1731366714936,21.70349397,220.01,219.91,6.3264]
[1731366714937,21.70349397,220.01,219.94,21.70349397]
[1731366715128,21.70349397,220.03,219.94,21.70349397]
[1731366715844,21.70349397,220.01,219.92,21.70349397]
[1731366716050,21.70349397,219.97,219.91,6.3264]
[1731366716449,21.70349397,219.93,219.86,21.70349397]
[1731366717246,21.70349397,219.88,219.79,6.619]
[1731366717453,6.5538,219.99,219.79,6.619]
[1731366717454,21.70349397,219.86,219.79,6.619]
[1731366718221,21.70349397,219.86,219.74,16.2665]
[1731366718222,21.70349397,219.84,219.74,16.2665]
[1731366718545,21.70349397,219.84,219.76,21.70349397]
[1731366720339,21.70349397,219.86,219.78,21.70349397]
[1731366720544,21.70349397,219.86,219.79,23.776884]
[1731366720738,15.9908,219.97,219.81,23.776884]
[1731366720929,21.70349397,219.89,219.83,23.776884]
[1731366721727,21.70349397,219.84,219.74,37.96999397]
[1731366721930,0.1,219.96,219.76,21.70349397]
[1731366722151,21.70349397,219.87,219.78,21.70349397]
[1731366722357,21.70349397,219.87,219.8,21.70349397]
[1731366722531,21.70349397,219.89,219.82,21.70349397]
[1731366723041,21.70349397,219.89,219.83,23.776884]
[1731366723359,21.70349397,219.87,219.81,23.776884]
[1731366723654,21.70349397,219.83,219.81,23.776884]
[1731366723836,21.70349397,219.83,219.74,37.96999397]
[1731366724031,21.70349397,219.79,219.74,16.2665]
[1731366724249,21.70349397,219.81,219.74,16.2665]
[1731366724838,0.1,219.93,219.75,21.70349397]
[1731366725044,21.70349397,219.82,219.75,21.70349397]
[1731366725345,21.70349397,219.88,219.81,21.70349397]
[1731366725747,21.70349397,219.9,219.83,21.70349397]
[1731366725951,21.70349397,219.9,219.84,23.776884]
[1731366726337,21.70349397,219.88,219.82,23.776884]
[1731366727328,21.70349397,219.86,219.82,23.776884]
[1731366727559,21.70349397,219.84,219.78,23.776884]
[1731366727773,21.70349397,219.83,219.78,23.776884]
[1731366727938,21.70349397,219.82,219.78,23.776884]
[1731366728255,21.70349397,219.85,219.78,21.70349397]
[1731366728556,15.9908,219.97,219.74,16.2665]
[1731366728557,15.9908,219.97,219.79,0.1]
[1731366728762,21.70349397,219.92,219.84,21.70349397]
[1731366728957,16.1908,219.97,219.74,16.2665]
[1731366729134,16.1908,219.97,219.77,21.70349397]
[1731366729332,21.70349397,219.82,219.78,23.776884]
[1731366729545,21.70349397,219.83,219.76,45.48037797]
[1731366729744,21.70349397,219.89,219.74,21.70349397]
[1731366729950,21.70349397,219.79,219.73,6.619]
[1731366730135,21.70349397,219.77,219.69,21.70349397]
[1731366730350,21.70349397,219.77,219.6,22.79655345]
[1731366730351,21.70349397,219.73,219.66,21.70349397]
[1731366730530,21.70349397,219.75,219.66,21.70349397]
[1731366730734,22.6284,219.84,219.61,19.7611]
[1731366730735,21.70349397,219.78,219.7,21.70349397]
[1731366730955,21.70349397,219.77,219.69,21.70349397]
[1731366731762,21.70349397,219.77,219.7,23.776884]
[1731366731969,21.70349397,219.74,219.66,21.70349397]
[1731366732145,21.70349397,219.76,219.68,21.70349397]
[1731366732345,22.6284,219.84,219.62,0.1]
[1731366732346,16.2753,219.84,219.7,21.70349397]
[1731366732547,21.70349397,219.79,219.71,21.70349397]
[1731366732738,21.70349397,219.77,219.69,21.70349397]
[1731366732945,6.4531,219.9,219.72,21.70349397]
[1731366733146,21.70349397,219.81,219.75,23.776884]
[1731366733463,21.70349397,219.79,219.73,23.776884]
[1731366733767,21.70349397,219.8,219.75,23.776884]
[1731366734258,21.70349397,219.79,219.74,23.776884]
[1731366734462,21.70349397,219.79,219.71,21.70349397]
[1731366734463,21.70349397,219.79,219.72,23.776884]
[1731366734760,21.70349397,219.77,219.69,21.70349397]
[1731366735376,21.70349397,219.75,219.67,21.70349397]
[1731366735662,21.70349397,219.77,219.69,21.70349397]
[1731366735847,21.70349397,219.79,219.71,21.70349397]
[1731366736049,0.1,219.87,219.72,23.776884]
[1731366736050,21.70349397,219.77,219.72,23.776884]
[1731366736362,21.70349397,219.89,219.7,21.70349397]
[1731366736363,21.70349397,219.76,219.7,23.776884]
[1731366736567,21.70349397,219.76,219.68,23.776884]
[1731366737649,21.70349397,219.74,219.68,23.776884]
[1731366737968,21.70349397,219.74,219.65,21.70349397]
[1731366738168,21.70349397,219.78,219.69,21.70349397]
[1731366738343,21.70349397,219.82,219.74,21.70349397]
[1731366738551,21.70349397,219.85,219.77,21.70349397]
[1731366738787,6.3531,219.9,219.69,0.2]
[1731366738968,21.70349397,219.88,219.81,45.48037797]
[1731366739270,21.70349397,219.85,219.8,23.776884]
[1731366739452,21.70349397,219.86,219.8,23.776884]
[1731366739766,6.3531,219.9,219.74,6.4358]
[1731366739767,21.70349397,219.85,219.79,23.776884]
[1731366739951,6.3531,219.9,219.78,23.776884]
[1731366739952,21.70349397,219.82,219.78,23.776884]
[1731366740154,21.70349397,219.8,219.78,23.776884]
[1731366740469,21.70349397,219.83,219.78,23.776884]
[1731366740644,21.70349397,219.81,219.78,23.776884]
[1731366741343,21.70349397,219.83,219.78,23.776884]
[1731366741562,6.3531,219.9,219.78,23.776884]
[1731366741563,6.3531,219.9,219.78,45.48037797]
[1731366741763,21.70349397,219.87,219.81,23.776884]
[1731366741968,21.70349397,219.84,219.81,23.776884]
[1731366742151,21.70349397,219.84,219.67,28.31039397]
[1731366742152,21.70349397,219.82,219.72,21.70349397]
[1731366742355,21.70349397,219.76,219.67,6.5069]
[1731366742542,21.70349397,219.79,219.71,21.70349397]
[1731366743156,21.70349397,219.77,219.71,21.70349397]
[1731366743357,21.70349397,219.77,219.69,21.70349397]
[1731366743863,21.70349397,219.75,219.65,21.70349397]
[1731366744264,21.70349397,219.77,219.7,21.70349397]
[1731366744660,21.70349397,219.73,219.64,21.70349397]
[1731366744846,21.70349397,219.71,219.64,21.70349397]
[1731366745047,21.70349397,219.67,219.6,21.70349397]
[1731366745570,21.70349397,219.69,219.6,21.70349397]
[1731366745949,21.70349397,219.67,219.6,21.70349397]
[1731366746147,15.4497,219.78,219.66,21.70349397]
[1731366746377,21.70349397,219.75,219.68,21.70349397]
[1731366746556,21.70349397,219.69,219.63,21.70349397]
[1731366746756,6.0796,219.83,219.63,21.70349397]
[1731366746757,6.0796,219.83,219.63,0.1]
[1731366746963,6.0796,219.83,219.61,5.18980411]
[1731366747274,0.1,219.82,219.56,0.2]
[1731366747456,0.1,219.8,219.56,0.1]
[1731366747653,0.2,219.8,219.56,0.1]
[1731366747862,21.70349397,219.7,219.62,21.70349397]
[1731366748364,21.70349397,219.68,219.6,21.70349397]
[1731366748557,21.70349397,219.64,219.56,21.70349397]
[1731366750062,15.3222,219.78,219.63,21.70349397]
[1731366750268,15.3222,219.78,219.61,0.1]
[1731366750475,15.3222,219.78,219.72,23.776884]
[1731366750476,21.70349397,219.78,219.72,23.776884]
[1731366751174,21.70349397,219.76,219.7,23.776884]
[1731366751564,21.70349397,219.76,219.68,23.776884]
[1731366752080,21.70349397,219.76,219.69,21.70349397]
[1731366752269,21.70349397,219.76,219.7,23.776884]
[1731366752672,21.70349397,219.78,219.7,23.776884]
[1731366752890,21.70349397,219.8,219.73,21.70349397]
[1731366753176,21.70349397,219.78,219.72,23.776884]
[1731366753556,21.70349397,219.76,219.7,23.776884]
[1731366754178,21.70349397,219.76,219.68,23.776884]
[1731366754484,21.70349397,219.78,219.71,21.70349397]
[1731366754676,21.70349397,219.78,219.72,23.776884]
[1731366754858,21.70349397,219.81,219.73,21.70349397]
[1731366755163,21.70349397,219.79,219.74,23.776884]
[1731366755366,21.70349397,219.79,219.72,23.776884]
[1731366755567,21.70349397,219.81,219.73,21.70349397]
[1731366755769,21.70349397,219.81,219.74,23.776884]
[1731366757278,21.70349397,219.81,219.62,6.6539]
[1731366757279,21.70349397,219.78,219.62,6.6539]
[1731366757485,21.70349397,219.8,219.73,21.70349397]
[1731366757657,21.70349397,219.8,219.74,23.776884]
[1731366757854,21.70349397,219.84,219.76,23.776884]
[1731366758065,21.70349397,219.85,219.78,23.776884]
[1731366759456,21.70349397,219.85,219.78,45.48037797]
[1731366759780,15.0335,219.9,219.78,45.48037797]
[1731366759781,21.70349397,219.87,219.78,45.48037797]
[1731366760471,21.70349397,219.85,219.78,45.48037797]
[1731366760677,21.70349397,219.87,219.78,45.48037797]
[1731366761370,21.70349397,219.86,219.79,21.70349397]
[1731366761980,21.70349397,219.84,219.8,23.776884]
[1731366762360,21.70349397,219.85,219.79,23.776884]
[1731366762676,21.70349397,219.86,219.79,23.776884]
[1731366762877,6.4112,219.95,219.78,23.776884]
[1731366762878,0.1,219.93,219.78,23.776884]
[1731366763190,6.4112,219.95,219.78,45.48037797]
[1731366763191,21.70349397,219.94,219.78,45.48037797]
[1731366763377,6.3112,219.95,219.78,45.48037797]
[1731366763566,21.70349397,219.88,219.77,23.776884]
[1731366763767,21.70349397,219.88,219.82,23.776884]
[1731366764281,15.5953,219.99,219.88,23.776884]
[1731366764467,21.70349397,219.95,219.88,23.776884]
[1731366764666,21.70349397,219.93,219.86,23.776884]
[1731366765290,21.70349397,219.97,219.89,21.70349397]
[1731366765588,21.70349397,219.97,219.9,23.776884]
[1731366765764,21.70349397,219.99,219.92,23.776884]
[1731366766388,21.70349397,220.02,219.94,45.48037797]
[1731366766569,15.8498,220.06,219.94,45.48037797]
[1731366767088,21.70349397,220.05,219.97,21.70349397]
[1731366767289,21.70349397,220.0,219.94,23.776884]
[1731366767590,21.70349397,219.96,219.91,23.776884]
[1731366767887,21.70349397,219.98,219.92,21.70349397]
[1731366768083,21.70349397,219.98,219.93,23.776884]
[1731366768386,21.70349397,220.0,219.93,23.776884]
[1731366768760,21.70349397,219.96,219.91,23.776884]
[1731366769083,21.70349397,219.96,219.83,23.00569272]
[1731366769084,21.70349397,219.92,219.8,6.4322]
[1731366769294,21.70349397,219.9,219.82,21.70349397]
[1731366769788,6.4805,219.98,219.8,28.13569397]
[1731366769992,21.70349397,219.87,219.8,28.13569397]
[1731366770186,21.70349397,219.85,219.8,6.4322]
[1731366770364,21.70349397,219.81,219.77,15.9095]
[1731366770770,21.70349397,219.85,219.77,37.61299397]
[1731366770987,6.4805,219.98,219.77,37.61299397]
[1731366771191,21.70349397,219.82,219.77,15.9095]
[1731366771574,21.70349397,219.83,219.75,21.70349397]
[1731366771769,0.1,219.97,219.77,21.70349397]
[1731366772072,21.70349397,219.84,219.75,21.70349397]
[1731366772276,21.70349397,219.8,219.74,6.4322]
[1731366773773,21.70349397,219.82,219.74,6.4322]
[1731366773970,21.70349397,219.78,219.68,21.70349397]
[1731366774482,0.1,219.94,219.74,21.70349397]
[1731366774679,21.70349397,219.81,219.72,21.70349397]
[1731366775267,0.1,219.92,219.73,23.776884]
[1731366775570,21.70349397,219.76,219.68,21.70349397]
[1731366775964,21.70349397,219.78,219.68,21.70349397]
[1731366776167,21.70349397,219.78,219.7,21.70349397]
[1731366776469,21.70349397,219.82,219.72,21.70349397]
[1731366776692,21.70349397,219.82,219.74,21.70349397]
[1731366776878,21.70349397,219.82,219.75,23.776884]
[1731366777191,21.70349397,219.84,219.77,23.776884]
[1731366777404,21.70349397,219.8,219.77,23.776884]
[1731366777897,21.70349397,219.82,219.77,23.776884]
[1731366778205,21.70349397,219.82,219.75,23.776884]
[1731366778573,21.70349397,219.82,219.77,23.776884]
[1731366778880,21.70349397,219.82,219.75,45.48037797]
[1731366780175,16.1994,219.92,219.75,45.48037797]
[1731366780176,16.1994,219.92,219.78,23.776884]
[1731366780494,21.70349397,219.79,219.78,23.776884]
[1731366780796,21.70349397,219.79,219.67,21.70349397]
[1731366781003,6.2661,219.9,219.68,0.1]
[1731366781195,21.70349397,219.84,219.77,21.70349397]
[1731366781900,21.70349397,219.84,219.68,24.31466619]
[1731366782084,21.70349397,219.82,219.77,23.776884]
[1731366782288,21.70349397,219.82,219.73,23.776884]
[1731366782596,21.70349397,219.78,219.73,23.776884]
[1731366782798,21.70349397,219.78,219.7,21.70349397]
[1731366782980,21.70349397,219.76,219.66,6.4164]
[1731366783180,21.70349397,219.76,219.69,21.70349397]
[1731366783500,21.70349397,219.78,219.69,21.70349397]
[1731366783818,21.70349397,219.78,219.71,21.70349397]
[1731366784179,21.70349397,219.82,219.73,21.70349397]
[1731366784382,21.70349397,219.8,219.71,21.70349397]
[1731366785104,21.70349397,219.8,219.72,23.776884]
[1731366785683,21.70349397,219.8,219.74,23.776884]
[1731366785880,21.70349397,219.82,219.74,23.776884]
[1731366787099,21.70349397,219.8,219.74,23.776884]
[1731366787293,21.70349397,219.8,219.72,23.776884]
[1731366787894,21.70349397,219.84,219.72,23.776884]
[1731366788104,21.70349397,219.84,219.76,23.776884]
[1731366788609,21.70349397,219.82,219.76,23.776884]
[1731366788990,21.70349397,219.84,219.76,45.48037797]
[1731366789185,21.70349397,219.86,219.79,23.776884]
[1731366789382,21.70349397,219.84,219.76,45.48037797]
[1731366789784,21.70349397,219.82,219.76,23.776884]
[1731366789982,21.70349397,219.8,219.72,21.70349397]
[1731366790198,21.70349397,219.85,219.76,21.70349397]
[1731366790491,21.70349397,219.83,219.75,21.70349397]
[1731366790685,21.70349397,219.85,219.68,13.57]
[1731366790886,21.70349397,219.81,219.74,5.86992078]
[1731366791100,21.70349397,219.83,219.75,21.70349397]
[1731366791341,21.70349397,219.81,219.66,19.9864]
[1731366791503,21.70349397,219.83,219.73,21.70349397]
[1731366791886,6.3661,219.9,219.75,21.70349397]
[1731366792086,21.70349397,219.83,219.75,21.70349397]
[1731366792312,21.70349397,219.83,219.74,23.776884]
[1731366792507,21.70349397,219.81,219.74,23.776884]
[1731366792985,21.70349397,219.83,219.74,45.48037797]
[1731366793189,21.70349397,219.79,219.69,21.70349397]
[1731366793916,21.70349397,219.75,219.66,6.4164]
[1731366794083,21.70349397,219.77,219.69,21.70349397]
[1731366794286,21.70349397,219.79,219.71,21.70349397]
[1731366794482,21.70349397,219.81,219.73,21.70349397]
[1731366794709,21.70349397,219.79,219.71,21.70349397]
[1731366795007,21.70349397,219.77,219.69,21.70349397]
[1731366795390,21.70349397,219.79,219.71,21.70349397]
[1731366795583,21.70349397,219.87,219.77,21.70349397]
[1731366795818,21.70349397,219.91,219.79,6.1367]
[1731366796105,21.70349397,219.89,219.81,23.776884]
[1731366796314,6.4624,219.97,219.8,23.776884]
[1731366796315,0.1,219.91,219.8,23.776884]
[1731366796500,6.4624,219.97,219.8,23.776884]
[1731366796501,21.70349397,219.81,219.8,23.776884]
[1731366797206,0.78207386,219.93,219.73,6.0405]
[1731366797207,21.70349397,219.91,219.81,23.776884]
[1731366797508,0.68207386,219.93,219.83,23.776884]
[1731366797509,21.70349397,219.89,219.83,23.776884]
[1731366797698,21.70349397,219.89,219.78,23.776884]
[1731366797895,21.70349397,219.89,219.81,23.776884]
[1731366798300,6.4624,219.97,219.89,23.776884]
[1731366798509,21.70349397,219.98,219.9,21.70349397]
[1731366798706,21.70349397,219.96,219.89,23.776884]
[1731366798910,15.9941,219.99,219.9,21.70349397]
[1731366799209,21.70349397,219.98,219.91,23.776884]
[1731366799516,21.70349397,220.0,219.91,23.776884]
[1731366800009,16.4222,220.05,219.95,23.776884]
[1731366800319,3.24,220.12,220.04,21.70349397]
[1731366800517,3.24,220.12,220.05,23.776884]
[1731366800820,21.70349397,220.27,220.13,0.1]
[1731366800995,8.04778319,220.36,220.25,21.70349397]
[1731366800996,1.87098319,220.36,220.25,21.70349397]
[1731366801498,0.1,220.44,220.35,21.70349397]
[1731366801692,21.70349397,220.48,220.41,21.70349397]
[1731366802010,21.70349397,220.48,220.29,0.1]
[1731366802011,0.1,220.5,220.29,0.1]
[1731366802210,21.70349397,220.43,220.33,23.776884]
[1731366802390,21.70349397,220.35,220.33,23.776884]
[1731366802583,0.1,220.45,220.24,22.81078577]
[1731366802802,35.27280819,220.43,220.21,22.96830788]
[1731366803010,35.27280819,220.37,220.28,35.27280819]
[1731366803215,0.1,220.35,220.22,23.776884]
[1731366803394,15.8585,220.53,220.2,35.27280819]
[1731366803395,35.27280819,220.3,220.2,35.27280819]
[1731366803922,35.27280819,220.24,220.04,22.1638767]
[1731366804092,35.27280819,220.44,220.03,6.1037]
[1731366804093,0.2,220.27,220.1,35.27280819]
[1731366804291,35.27280819,220.21,220.12,35.27280819]
[1731366805116,0.68094587,220.31,220.1,35.27280819]
[1731366805117,35.27280819,220.19,220.1,35.27280819]
[1731366805412,0.68094587,220.31,220.0,35.27280819]
[1731366805413,0.1,220.21,220.11,35.27280819]
[1731366805601,0.1,220.25,220.15,35.27280819]
[1731366805925,35.27280819,220.22,220.13,35.27280819]
[1731366806299,35.27280819,220.24,220.15,35.27280819]
[1731366806506,0.1,220.29,220.17,35.27280819]
[1731366806722,35.27280819,220.23,220.13,35.27280819]
[1731366806894,35.27280819,220.17,219.99,23.776884]
[1731366807092,0.1,220.25,220.12,35.27280819]
[1731366807298,0.1,220.19,220.0,40.20432608]
[1731366807506,0.1,220.19,219.99,22.96902514]
[1731366807507,0.1,220.16,219.95,4.93151789]
[1731366807704,0.1,220.16,219.92,22.29340691]
[1731366807705,0.1,220.12,219.87,15.7002]
[1731366807903,0.1,220.1,219.91,4.93151789]
[1731366808107,0.1,220.11,219.91,4.93151789]
[1731366808410,0.2,220.13,219.94,4.93151789]
[1731366808618,23.776884,220.11,219.88,5.03151789]
[1731366808795,35.27280819,220.11,219.88,5.03151789]
[1731366808990,35.27280819,220.09,219.88,4.93151789]
[1731366809190,23.876884,220.12,219.89,22.5225388]
[1731366809402,0.1,220.13,220.05,35.27280819]
[1731366809615,35.37280819,220.15,219.9,27.85920099]
[1731366809814,35.27280819,220.15,220.07,20.0]
[1731366810018,35.27280819,220.15,220.08,35.27280819]
[1731366810205,35.27280819,220.17,220.09,20.0]
[1731366810405,23.776884,220.18,220.11,20.0]
[1731366810604,35.27280819,220.14,219.92,23.776884]
[1731366810933,35.27280819,220.14,220.06,35.27280819]
[1731366811231,35.27280819,220.12,220.04,35.27280819]
[1731366811397,23.776884,220.18,219.94,35.27280819]
[1731366811398,0.2,220.07,219.94,35.27280819]
[1731366811597,35.27280819,220.0,219.81,6.6477]
[1731366811920,35.27280819,219.92,219.85,18.171252]
[1731366812218,0.1,219.94,219.73,22.12409767]
[1731366812531,0.1,219.94,219.87,35.27280819]
[1731366812818,23.776884,219.95,219.8,18.175783]
[1731366812819,23.776884,219.95,219.89,35.27280819]
[1731366813003,0.1,219.96,219.89,35.27280819]
[1731366813198,23.876884,219.97,219.8,18.175783]
[1731366813396,23.776884,219.97,219.93,35.27280819]
[1731366813705,35.27280819,219.98,219.9,35.27280819]
[1731366814107,23.776884,219.97,219.91,3.183]
[1731366814696,0.1,219.96,219.91,3.183]
[1731366814896,0.1,220.0,219.84,37.54710819]
[1731366814897,0.1,219.91,219.84,37.54710819]
[1731366815212,23.876884,219.91,219.84,2.2743]
[1731366815411,35.27280819,219.9,219.84,2.2743]
[1731366815617,23.876884,219.91,219.85,35.27280819]
[1731366815834,23.776884,219.91,219.85,35.27280819]
[1731366816114,23.776884,219.95,219.88,38.45620819]
[1731366816341,0.1,219.96,219.88,3.1834]
[1731366816507,22.31148778,220.32,219.92,35.27280819]
[1731366816508,0.1,219.98,219.92,35.27280819]
[1731366816703,0.1,219.91,219.86,0.9096]
[1731366817016,0.1,219.85,219.77,0.91]
[1731366817238,35.27280819,219.82,219.77,3.1851]
[1731366817399,0.1,219.79,219.77,3.1851]
[1731366817601,35.37280819,219.78,219.77,3.1851]
[1731366817923,35.37280819,219.78,219.77,2.2751]
[1731366818220,0.1,219.76,219.74,0.9101]
[1731366818422,0.1,219.81,219.74,38.45830819]
[1731366818630,23.776884,219.83,219.76,35.27280819]
[1731366818803,23.776884,219.85,219.78,35.27280819]
[1731366819127,0.1,219.64,219.44,16.2305565]
[1731366819427,35.27280819,219.65,219.55,35.27280819]
[1731366819730,0.1,219.72,219.48,0.1]
[1731366819904,35.27280819,219.71,219.62,35.27280819]
[1731366820106,35.27280819,219.71,219.45,53.57347019]
[1731366820107,35.27280819,219.71,219.64,35.27280819]
[1731366820303,35.27280819,219.69,219.63,3.1871]
[1731366820699,0.2,219.73,219.55,35.27280819]
[1731366820915,0.2,219.73,219.46,3.1896]
[1731366820916,35.27280819,219.67,219.57,25.12987262]
[1731366821221,35.27280819,219.69,219.59,35.27280819]
[1731366821430,35.27280819,219.71,219.63,35.27280819]
[1731366822122,35.27280819,219.67,219.61,3.1874]
[1731366822323,35.27280819,219.73,219.64,35.27280819]
[1731366822527,35.27280819,219.77,219.68,35.27280819]
[1731366822826,35.27280819,219.85,219.76,35.27280819]
[1731366823001,35.27280819,219.83,219.74,35.27280819]
[1731366823203,0.2,219.9,219.7,20.0]
[1731366823403,0.1,219.89,219.7,20.0]
[1731366823631,0.1,219.75,219.61,7.7409]
[1731366823924,0.1,219.8,219.61,7.7409]
[1731366824137,0.1,219.9,219.6,0.1]
[1731366824427,35.27280819,219.89,219.79,35.27280819]
[1731366824803,35.27280819,219.85,219.61,20.1]
[1731366824999,35.27280819,219.84,219.75,20.0]
[1731366825206,35.27280819,219.86,219.76,35.27280819]
[1731366825419,35.27280819,219.86,219.77,20.0]
[1731366825624,35.27280819,219.84,219.76,35.27280819]
[1731366825824,35.27280819,219.8,219.72,35.27280819]
[1731366826030,35.27280819,219.8,219.62,23.776884]
[1731366826031,35.27280819,219.75,219.67,35.27280819]
[1731366826205,35.27280819,219.75,219.68,23.776884]
[1731366826403,35.27280819,219.78,219.63,39.14280819]
[1731366826611,35.27280819,219.74,219.65,35.27280819]
[1731366827225,35.27280819,219.7,219.63,39.14280819]
[1731366827540,35.27280819,219.72,219.63,39.14280819]
[1731366828024,35.27280819,219.74,219.65,35.27280819]
[1731366828213,35.27280819,219.76,219.67,35.27280819]
[1731366828412,35.27280819,219.8,219.72,20.0]
[1731366828861,35.27280819,219.78,219.69,35.27280819]
[1731366829129,35.27280819,219.78,219.66,6.1457]
[1731366829130,35.27280819,219.74,219.66,6.1457]
[1731366830113,35.27280819,219.76,219.67,59.04969219]
[1731366830822,35.27280819,219.78,219.69,35.27280819]
[1731366831136,35.27280819,219.8,219.71,35.27280819]
[1731366831353,35.27280819,219.89,219.7,0.1]
[1731366831627,35.27280819,219.9,219.8,35.27280819]
[1731366831834,35.27280819,219.9,219.81,23.776884]
[1731366832040,35.27280819,219.92,219.84,35.27280819]
[1731366832329,35.27280819,219.92,219.82,35.27280819]
[1731366832534,35.27280819,220.0,219.85,23.776884]
[1731366832535,35.27280819,219.94,219.85,23.776884]
[1731366832744,35.27280819,219.96,219.88,35.27280819]
[1731366832940,35.27280819,219.98,219.9,35.27280819]
[1731366833326,35.27280819,220.0,219.9,35.27280819]
[1731366833628,35.27280819,219.98,219.9,35.27280819]
[1731366833844,35.27280819,219.92,219.84,35.27280819]
[1731366834024,35.27280819,219.9,219.83,23.776884]
[1731366834228,35.27280819,219.92,219.84,35.27280819]
[1731366834628,35.27280819,219.96,219.88,35.27280819]
[1731366835136,0.1,220.07,219.79,0.1]
[1731366835137,35.27280819,219.94,219.86,35.27280819]
[1731366835347,35.27280819,219.96,219.88,35.27280819]
[1731366835817,35.27280819,219.89,219.74,0.1]
[1731366836021,35.27280819,219.91,219.82,35.27280819]
[1731366836652,35.27280819,219.87,219.78,35.27280819]
[1731366836945,35.27280819,219.85,219.76,35.27280819]
[1731366837344,35.27280819,219.81,219.72,35.27280819]
[1731366837539,35.27280819,219.83,219.74,35.27280819]
[1731366837843,35.27280819,219.87,219.78,35.27280819]
[1731366838149,35.27280819,219.84,219.76,35.27280819]
[1731366838348,35.27280819,219.82,219.74,35.27280819]
[1731366838646,35.27280819,219.76,219.71,6.3505]
[1731366838821,35.27280819,219.75,219.71,6.3505]
[1731366839025,35.27280819,219.79,219.71,6.3505]
[1731366839341,35.27280819,219.81,219.72,35.27280819]
[1731366839527,35.27280819,219.83,219.74,35.27280819]
[1731366839726,35.27280819,219.83,219.71,6.3505]
[1731366839727,35.27280819,219.81,219.72,35.27280819]
[1731366839925,23.776884,219.93,219.76,35.27280819]
[1731366840148,0.1,220.02,219.82,35.27280819]
[1731366840344,0.1,220.02,219.78,35.27280819]
[1731366840345,35.27280819,219.88,219.78,35.27280819]
[1731366840648,0.1,219.96,219.72,5.28620047]